bitfinex/quotes_BTCUSD_20241119
["timestamp","ask_amount","ask_price","bid_price","bid_amount"]
[1731995331921,0.0017092,91556.0,91555.0,0.64545367]
[1731995332131,0.0017092,91556.0,91555.0,0.65358771]
[1731995332338,0.0017092,91556.0,91555.0,0.65558771]
[1731995332753,0.0017092,91556.0,91555.0,0.80237399]
[1731995333061,0.0017092,91556.0,91555.0,0.67872291]
[1731995333281,0.0017092,91556.0,91555.0,0.53193663]
[1731995333782,0.0017092,91556.0,91555.0,0.72766406]
[1731995334218,0.0017092,91556.0,91555.0,0.53193663]
[1731995334427,0.0047092,91556.0,91555.0,0.76763038]
[1731995334645,0.0047092,91556.0,91555.0,0.78927652]
[1731995334838,0.0037092,91556.0,91555.0,0.68727652]
[1731995335272,0.0047092,91556.0,91555.0,0.74312009]
[1731995335709,0.0047092,91556.0,91555.0,0.54742634]
[1731995335933,0.0047092,91556.0,91555.0,0.69419425]
[1731995336147,0.0047092,91556.0,91555.0,0.5257802]
[1731995344442,0.0047092,91556.0,91555.0,0.5277802]
[1731995345525,0.0047092,91556.0,91555.0,0.62565728]
[1731995345730,0.0047092,91556.0,91555.0,0.65143128]
[1731995345941,0.0047092,91556.0,91555.0,0.73983128]
[1731995346391,0.0047092,91556.0,91555.0,0.83775574]
[1731995347216,0.0047092,91556.0,91555.0,0.73983128]
[1731995347828,0.0047092,91556.0,91555.0,0.5357802]
[1731995348822,0.0047092,91556.0,91555.0,0.73168822]
[1731995349024,0.0047092,91556.0,91555.0,0.5357802]
[1731995350105,0.0047092,91556.0,91555.0,0.73168822]
[1731995350314,0.0047092,91556.0,91555.0,0.5357802]
[1731995352047,0.0047092,91556.0,91555.0,0.5257802]
[1731995352249,0.0047092,91556.0,91555.0,0.67270926]
[1731995353808,0.0047092,91556.0,91555.0,0.5257802]
[1731995354035,0.0047092,91556.0,91555.0,0.67271437]
[1731995354233,0.0047092,91556.0,91555.0,0.67270938]
[1731995354452,0.0047092,91556.0,91555.0,0.5257802]
[1731995354880,0.0047092,91556.0,91555.0,0.67271476]
[1731995355741,0.0047092,91556.0,91555.0,0.5257802]
[1731995356411,0.0047092,91556.0,91555.0,0.91936125]
[1731995356649,0.0047092,91556.0,91555.0,0.77243128]
[1731995356873,0.0047092,91556.0,91555.0,1.00512398]
[1731995356874,0.0037092,91556.0,91555.0,1.00512398]
[1731995357089,0.0017092,91556.0,91555.0,0.73243128]
[1731995357303,0.0027092,91556.0,91555.0,0.74443128]
[1731995357749,0.0027092,91556.0,91555.0,0.69933128]
[1731995357960,0.0027092,91556.0,91555.0,0.89524027]
[1731995358171,0.0047092,91556.0,91555.0,0.79958919]
[1731995358376,0.0047092,91556.0,91555.0,0.6036802]
[1731995359074,0.0047092,91556.0,91555.0,0.7995927]
[1731995359305,0.0037092,91556.0,91555.0,0.7875927]
[1731995359512,0.0047092,91556.0,91555.0,0.79959495]
[1731995359722,0.0047092,91556.0,91555.0,0.80159495]
[1731995359936,0.0037092,91556.0,91555.0,0.5936802]
[1731995360139,0.0037092,91556.0,91555.0,0.5916802]
[1731995360357,0.0037092,91556.0,91555.0,0.79560034]
[1731995360582,0.0037092,91556.0,91555.0,0.5996802]
[1731995361220,0.0037092,91556.0,91555.0,0.79560143]
[1731995361647,0.0037092,91556.0,91555.0,0.5996802]
[1731995362290,0.0037092,91556.0,91555.0,0.63154461]
[1731995362706,0.0037092,91556.0,91555.0,0.62554461]
[1731995362943,0.0037092,91556.0,91555.0,0.62854461]
[1731995363583,0.0037092,91556.0,91555.0,0.62554461]
[1731995363795,0.0037092,91556.0,91555.0,0.62954461]
[1731995364460,0.0017092,91556.0,91555.0,0.59754461]
[1731995364674,0.0017092,91556.0,91555.0,0.61054461]
[1731995365794,0.0017092,91556.0,91555.0,0.60054461]
[1731995366002,0.0017092,91556.0,91555.0,0.59554461]
[1731995366219,0.0017092,91556.0,91555.0,0.62454461]
[1731995366431,0.0017092,91556.0,91555.0,0.56098196]
[1731995366634,0.0017092,91556.0,91555.0,0.57198196]
[1731995366919,0.0017092,91556.0,91555.0,0.47508196]
[1731995367135,0.0017092,91556.0,91555.0,0.5899342]
[1731995367353,0.0017092,91556.0,91555.0,0.49608196]
[1731995367551,0.0017092,91556.0,91555.0,0.62904374]
[1731995367774,0.0017092,91556.0,91555.0,0.65004374]
[1731995367975,0.0017092,91556.0,91555.0,0.50308196]
[1731995368258,0.0017092,91556.0,91555.0,0.65003933]
[1731995368606,0.0017092,91556.0,91555.0,0.65004361]
[1731995368972,0.0017092,91556.0,91555.0,0.62204361]
[1731995369171,0.0017092,91556.0,91555.0,0.47508196]
[1731995369373,0.0017092,91556.0,91555.0,0.65103891]
[1731995369612,0.0017092,91556.0,91555.0,0.63003891]
[1731995369813,0.0017092,91556.0,91555.0,0.63204322]
[1731995370178,0.0017092,91556.0,91555.0,0.47708196]
[1731995370611,0.0017092,91556.0,91555.0,0.48708196]
[1731995370830,0.0017092,91556.0,91555.0,0.47708196]
[1731995371038,0.0017092,91556.0,91555.0,0.47508196]
[1731995371473,0.0017092,91556.0,91555.0,0.62204322]
[1731995372341,0.0017092,91556.0,91555.0,0.47508196]
[1731995372564,0.0017092,91556.0,91555.0,0.47708196]
[1731995373013,0.0017092,91556.0,91555.0,0.47508196]
[1731995373251,0.0017092,91556.0,91555.0,0.68102263]
[1731995373500,0.0017092,91556.0,91555.0,0.67302263]
[1731995373726,0.0017092,91556.0,91555.0,0.68302263]
[1731995374403,0.0017092,91556.0,91555.0,0.48708196]
[1731995374622,0.0117092,91556.0,91555.0,0.08770798]
[1731995374851,0.0603092,91556.0,91555.0,0.15392168]
[1731995375280,0.0603092,91556.0,91555.0,0.05584357]
[1731995375478,0.0603092,91556.0,91555.0,0.05384357]
[1731995375692,0.0603092,91556.0,91555.0,0.04384357]
[1731995375918,0.0603092,91556.0,91555.0,0.115223]
[1731995376129,0.0603092,91556.0,91555.0,0.211223]
[1731995376352,0.0603092,91556.0,91555.0,0.209223]
[1731995376574,0.0633092,91556.0,91555.0,0.209223]
[1731995376766,0.0723092,91556.0,91555.0,0.210223]
[1731995377282,0.0603092,91556.0,91555.0,0.209223]
[1731995377513,0.0693092,91556.0,91555.0,0.210223]
[1731995377736,0.0723092,91556.0,91555.0,0.210223]
[1731995378813,0.0633092,91556.0,91555.0,0.209223]
[1731995379247,0.0653092,91556.0,91555.0,0.209223]
[1731995379471,0.0553092,91556.0,91555.0,0.209223]
[1731995379676,0.0533092,91556.0,91555.0,0.209223]
[1731995379897,0.0623092,91556.0,91555.0,0.29131143]
[1731995380547,0.0503092,91556.0,91555.0,0.29031143]
[1731995380775,0.0523092,91556.0,91555.0,0.29231143]
[1731995381909,0.0623092,91556.0,91555.0,0.29231143]
[1731995382111,0.0603092,91556.0,91555.0,0.29031143]
[1731995382328,0.0633092,91556.0,91555.0,0.29031143]
[1731995382554,0.0683092,91556.0,91555.0,0.29031143]
[1731995383009,0.0583092,91556.0,91555.0,0.29031143]
[1731995383472,0.0683092,91556.0,91555.0,0.29031143]
[1731995383697,0.0683092,91556.0,91555.0,0.28981143]
[1731995384154,0.0683092,91556.0,91555.0,0.208723]
[1731995385045,0.0653092,91556.0,91555.0,0.208723]
[1731995385281,0.0553092,91556.0,91555.0,0.208723]
[1731995385499,0.0683092,91556.0,91555.0,0.208723]
[1731995385966,0.0633092,91556.0,91555.0,0.208723]
[1731995386189,0.0603092,91556.0,91555.0,0.208723]
[1731995386398,0.0673092,91556.0,91555.0,0.210723]
[1731995386610,0.0573092,91556.0,91555.0,0.210723]
[1731995386822,0.0503092,91556.0,91555.0,0.28981143]
[1731995387028,0.0513092,91556.0,91555.0,0.28981143]
[1731995387248,0.0553092,91556.0,91555.0,0.28981143]
[1731995387483,0.0067092,91556.0,91555.0,0.28981143]
[1731995387710,0.0027092,91556.0,91555.0,0.28981143]
[1731995387916,0.0027092,91556.0,91555.0,0.208723]
[1731995388537,0.0017092,91556.0,91555.0,0.208723]
[1731995388956,0.0017092,91556.0,91555.0,0.210723]
[1731995389164,0.0017092,91556.0,91555.0,0.208723]
[1731995389385,0.0017092,91556.0,91555.0,0.216723]
[1731995389601,0.0037092,91556.0,91555.0,0.208723]
[1731995390039,0.0017092,91556.0,91555.0,0.210723]
[1731995390474,0.0037092,91556.0,91555.0,0.210723]
[1731995393619,0.0037092,91556.0,91555.0,0.50685847]
[1731995393834,0.0037092,91556.0,91555.0,0.71076584]
[1731995394046,0.0037092,91556.0,91555.0,0.54653428]
[1731995394674,0.0017092,91556.0,91555.0,0.54653428]
[1731995395531,0.0017092,91556.0,91555.0,0.54453428]
[1731995395967,0.0017092,91556.0,91555.0,0.56653428]
[1731995396222,0.0017092,91556.0,91555.0,0.57553428]
[1731995396449,0.0017092,91556.0,91555.0,0.57523428]
[1731995397134,0.0017092,91556.0,91555.0,0.60722493]
[1731995397789,0.0017092,91556.0,91555.0,0.47147589]
[1731995398216,0.0017092,91556.0,91555.0,0.71644793]
[1731995398420,0.0017092,91556.0,91555.0,0.46947589]
[1731995398627,0.0017092,91556.0,91555.0,0.47147589]
[1731995399313,0.0017092,91556.0,91555.0,0.71644793]
[1731995401037,0.0017092,91556.0,91555.0,0.47147589]
[1731995401487,0.0017092,91556.0,91555.0,0.7163927]
[1731995401712,0.0017092,91556.0,91555.0,0.71638187]
[1731995402161,0.0017092,91556.0,91555.0,0.47147589]
[1731995403497,0.0017092,91556.0,91555.0,0.71634494]
[1731995404017,0.0017092,91556.0,91555.0,0.71805414]
[1731995405098,0.0017092,91556.0,91555.0,0.47318509]
[1731995407265,0.0017092,91556.0,91555.0,0.79915031]
[1731995407487,0.0017092,91556.0,91555.0,0.63926188]
[1731995407695,0.0017092,91556.0,91555.0,0.42421251]
[1731995407921,0.0017092,91556.0,91555.0,0.63720041]
[1731995408147,0.0017092,91556.0,91555.0,0.47897855]
[1731995408395,0.00284425,91556.0,91555.0,0.22302063]
[1731995409306,0.01284425,91556.0,91555.0,0.22302063]
[1731995409537,0.01284425,91556.0,91555.0,0.1419322]
[1731995409779,0.01284425,91556.0,91555.0,0.1109322]
[1731995409979,0.01284425,91556.0,91555.0,0.1149322]
[1731995410196,0.01284425,91556.0,91555.0,0.0017092]
[1731995410499,0.12206625,91556.0,91555.0,0.0017092]
[1731995410717,0.24826625,91556.0,91555.0,0.0017092]
[1731995410922,0.2471312,91556.0,91555.0,0.0017092]
[1731995411133,0.2461312,91556.0,91555.0,0.0017092]
[1731995411835,0.2451312,91556.0,91555.0,0.0017092]
[1731995412274,0.2481312,91556.0,91555.0,0.0017092]
[1731995412483,0.2481312,91556.0,91555.0,0.0027092]
[1731995412484,0.1449092,91556.0,91555.0,0.0027092]
[1731995412709,0.14904425,91556.0,91555.0,0.0027092]
[1731995412916,0.24926625,91556.0,91555.0,0.0017092]
[1731995413131,0.2481312,91556.0,91555.0,0.0017092]
[1731995413345,0.2481312,91556.0,91555.0,0.0027092]
[1731995413346,0.2591312,91556.0,91555.0,0.0027092]
[1731995423306,0.1499092,91556.0,91555.0,0.0027092]
[1731995423530,0.15104425,91556.0,91555.0,0.0027092]
[1731995423761,0.26026625,91556.0,91555.0,0.0027092]
[1731995423968,0.2591312,91556.0,91555.0,0.0027092]
[1731995424187,0.2591312,91556.0,91549.0,0.10983535]
[1731995424397,0.00113505,91555.0,91549.0,0.10983535]
[1731995424825,0.00113505,91555.0,91549.0,0.00060535]
[1731995425045,0.00113505,91555.0,91550.0,0.109229]
[1731995426378,0.11236005,91555.0,91549.0,0.00060535]
[1731995426609,0.11736005,91555.0,91549.0,0.00060535]
[1731995427228,0.11236005,91555.0,91549.0,0.00060535]
[1731995427696,0.111225,91555.0,91550.0,0.109229]
[1731995428135,0.01,91551.0,91550.0,0.34209067]
[1731995428421,0.002,91555.0,91552.0,0.218455]
[1731995428657,0.0017092,91556.0,91555.0,0.209223]
[1731995430175,0.0017092,91556.0,91555.0,0.230223]
[1731995430402,0.0017092,91556.0,91555.0,0.237223]
[1731995432256,0.0017092,91556.0,91555.0,0.34628555]
[1731995435192,0.0017092,91556.0,91555.0,0.3904171]
[1731995435403,0.0017092,91556.0,91555.0,0.3694171]
[1731995435612,0.0017092,91556.0,91555.0,0.3814171]
[1731995435827,0.0017092,91556.0,91555.0,0.3874171]
[1731995436263,0.0017092,91556.0,91555.0,0.3814171]
[1731995436473,0.0017092,91556.0,91555.0,0.3624171]
[1731995436682,0.0017092,91556.0,91555.0,0.3844171]
[1731995438004,0.0017092,91556.0,91555.0,0.3861263]
[1731995438482,0.0017092,91556.0,91555.0,0.3811263]
[1731995438924,0.0017092,91556.0,91555.0,0.3871263]
[1731995439371,0.0017092,91556.0,91555.0,0.3811263]
[1731995439578,0.0017092,91556.0,91555.0,0.3861263]
[1731995446391,0.0017092,91556.0,91555.0,0.46723185]
[1731995446836,0.0017092,91556.0,91555.0,0.3861263]
[1731995447040,0.0017092,91556.0,91555.0,0.46723185]
[1731995451363,0.0017092,91556.0,91555.0,0.45023185]
[1731995451580,0.0017092,91556.0,91555.0,0.46223185]
[1731995451782,0.0017092,91556.0,91555.0,0.46723185]
[1731995453062,0.0017092,91556.0,91555.0,0.5651214]
[1731995453543,0.0017092,91556.0,91555.0,0.46723185]
[1731995454649,0.0017092,91556.0,91555.0,0.46223185]
[1731995454864,0.0017092,91556.0,91555.0,0.44523185]
[1731995455091,0.0017092,91556.0,91555.0,0.45023185]
[1731995455300,0.0017092,91556.0,91555.0,0.46723185]
[1731995457914,0.0017092,91556.0,91555.0,0.56514927]
[1731995458347,0.0017092,91556.0,91555.0,0.46723185]
[1731995462416,0.0017092,91556.0,91555.0,0.49915143]
[1731995463381,0.0017092,91556.0,91555.0,0.64606957]
[1731995464441,0.0017092,91556.0,91555.0,0.49915143]
[1731995465277,0.0017092,91556.0,91555.0,0.41804588]
[1731995466296,0.0017092,91556.0,91555.0,0.48411381]
[1731995466496,0.0017092,91556.0,91555.0,0.3861263]
[1731995466882,0.0117092,91556.0,91555.0,0.27706375]
[1731995467265,0.0017092,91556.0,91555.0,0.27706375]
[1731995467468,0.0017092,91556.0,91555.0,0.45595228]
[1731995467673,0.0017092,91556.0,91555.0,0.3861263]
[1731995467910,0.0017092,91556.0,91555.0,0.53315475]
[1731995468125,0.0017092,91556.0,91555.0,0.3861263]
[1731995468543,0.0017092,91556.0,91555.0,0.61412921]
[1731995469362,0.0017092,91556.0,91555.0,0.41805972]
[1731995469559,0.0017092,91556.0,91555.0,0.66314658]
[1731995469797,0.0017092,91556.0,91555.0,0.41805972]
[1731995470252,0.0017092,91556.0,91555.0,0.49916527]
[1731995485795,0.0017092,91556.0,91555.0,0.50116527]
[1731995486018,0.0017092,91556.0,91555.0,0.49916527]
[1731995486225,0.0017092,91556.0,91555.0,0.50116527]
[1731995486659,0.0017092,91556.0,91555.0,0.49916527]
[1731995487571,0.0017092,91556.0,91555.0,0.50116527]
[1731995487801,0.0017092,91556.0,91555.0,0.49916527]
[1731995488237,0.0017092,91556.0,91555.0,1.19916527]
[1731995489811,0.001707,91559.0,91558.0,0.10922]
[1731995490025,0.001707,91559.0,91558.0,0.35021597]
[1731995491108,0.001707,91559.0,91558.0,0.35221597]
[1731995491322,0.001707,91559.0,91558.0,0.64667748]
[1731995491522,0.001707,91559.0,91558.0,0.65767748]
[1731995493282,0.001707,91559.0,91558.0,0.65766311]
[1731995496275,0.001707,91559.0,91558.0,0.36321597]
[1731995507376,0.0008545,91565.0,91564.0,0.109213]
[1731995507599,0.0008545,91565.0,91564.0,0.80884372]
[1731995507857,0.0008545,91565.0,91564.0,0.59312007]
[1731995508058,0.0017096,91576.0,91564.0,0.59312007]
[1731995508059,0.0017096,91576.0,91568.0,0.211208]
[1731995508272,0.0017096,91576.0,91575.0,0.3714111]
[1731995508526,0.0017096,91576.0,91575.0,0.51440707]
[1731995509192,0.0017096,91576.0,91575.0,0.51240707]
[1731995509439,0.01,91587.0,91586.0,0.209186]
[1731995509637,0.0004,91589.0,91586.0,0.209186]
[1731995509638,0.0004,91589.0,91588.0,0.209184]
[1731995509860,0.0004,91589.0,91588.0,0.31824655]
[1731995510275,0.0004,91589.0,91588.0,0.56325028]
[1731995511148,0.0004,91589.0,91588.0,0.57325028]
[1731995511407,0.0004,91589.0,91588.0,0.31824655]
[1731995511638,0.0004,91589.0,91588.0,0.33524655]
[1731995511862,0.0004,91589.0,91588.0,0.33624655]
[1731995512083,0.0004,91589.0,91588.0,0.31924655]
[1731995512303,0.0004,91589.0,91588.0,0.33424655]
[1731995512542,0.0004,91589.0,91588.0,0.33324655]
[1731995512726,0.0004,91589.0,91588.0,0.33724655]
[1731995513894,0.0004,91589.0,91588.0,0.32224655]
[1731995514349,0.0004,91589.0,91588.0,0.48508328]
[1731995515470,0.0004,91589.0,91588.0,0.33824655]
[1731995517403,0.0004,91589.0,91588.0,0.43610051]
[1731995518325,0.0004,91589.0,91588.0,0.33824655]
[1731995519813,0.0012546,91589.0,91588.0,0.33824655]
[1731995520050,0.0012546,91589.0,91588.0,0.43608671]
[1731995522485,0.0012546,91589.0,91588.0,0.33824655]
[1731995524876,0.0012546,91589.0,91588.0,1.03824655]
[1731995526888,0.0012546,91589.0,91588.0,1.04024655]
[1731995529312,0.0012546,91589.0,91588.0,0.33824655]
[1731995529524,0.0036092,91592.0,91591.0,0.109181]
[1731995529737,0.0036092,91592.0,91591.0,0.3993491]
[1731995530811,0.0036092,91592.0,91591.0,0.4093491]
[1731995531703,0.0036092,91592.0,91591.0,0.4113491]
[1731995533503,0.1433092,91592.0,91591.0,0.221181]
[1731995534408,0.0036092,91592.0,91591.0,0.33024355]
[1731995534646,0.0036092,91592.0,91591.0,0.32824355]
[1731995535520,0.0036092,91592.0,91591.0,0.31824355]
[1731995535730,0.0036092,91592.0,91591.0,0.32024355]
[1731995535940,0.0036092,91592.0,91591.0,0.32324355]
[1731995536150,0.0036092,91592.0,91591.0,0.32024355]
[1731995536573,0.0036092,91592.0,91591.0,0.33024355]
[1731995538767,0.0036092,91592.0,91591.0,0.4806491]
[1731995538991,0.0036092,91592.0,91591.0,0.69339418]
[1731995539206,0.0036092,91592.0,91591.0,0.74227486]
[1731995539643,0.0036092,91592.0,91591.0,1.17393297]
[1731995539863,0.0036092,91592.0,91591.0,1.27111397]
[1731995540074,0.0036092,91592.0,91591.0,1.23843365]
[1731995540286,0.0036092,91592.0,91591.0,1.43396317]
[1731995540726,0.0036092,91592.0,91591.0,1.46192576]
[1731995541374,0.0046092,91592.0,91591.0,1.51179423]
[1731995541799,0.0036092,91592.0,91591.0,1.49379423]
[1731995542012,0.0008544,91599.0,91598.0,0.232172]
[1731995542222,0.0008544,91599.0,91598.0,0.73235311]
[1731995542667,0.0008544,91599.0,91598.0,0.58374565]
[1731995542892,0.0008544,91599.0,91598.0,0.73034174]
[1731995543106,0.0008544,91599.0,91598.0,0.58374565]
[1731995543332,0.0008544,91599.0,91598.0,0.58974565]
[1731995543550,0.0008544,91599.0,91598.0,0.60774565]
[1731995543793,0.0008544,91599.0,91598.0,0.70548077]
[1731995544009,0.0008544,91599.0,91598.0,0.7054799]
[1731995545109,0.0008544,91599.0,91598.0,0.60574565]
[1731995545330,0.0008544,91599.0,91598.0,0.55407763]
[1731995545773,0.0008544,91599.0,91598.0,0.57071477]
[1731995545987,0.0008544,91599.0,91598.0,0.65182032]
[1731995546192,0.0008544,91599.0,91598.0,0.55407763]
[1731995548229,0.0008544,91599.0,91598.0,0.65183695]
[1731995548492,0.0008544,91599.0,91598.0,0.6518543]
[1731995548743,0.0008544,91599.0,91598.0,0.55407763]
[1731995549653,0.0008544,91621.0,91609.0,0.1]
[1731995549863,0.16445655,91628.0,91627.0,0.109138]
[1731995550077,0.16445655,91628.0,91627.0,0.48041165]
[1731995550302,0.0004,91629.0,91628.0,0.209136]
[1731995550513,0.0004,91629.0,91628.0,0.31819855]
[1731995550690,0.0004,91629.0,91628.0,0.4159833]
[1731995550989,0.0004,91629.0,91628.0,0.52491622]
[1731995551170,0.0004,91629.0,91628.0,0.37823909]
[1731995551885,0.0004,91629.0,91628.0,0.38723909]
[1731995552311,0.0004,91629.0,91628.0,0.47597928]
[1731995552526,0.0004,91629.0,91628.0,0.49997862]
[1731995552996,0.0004,91629.0,91628.0,0.4726184]
[1731995553503,0.0004,91629.0,91628.0,0.37487887]
[1731995553710,0.0004,91629.0,91628.0,0.40223909]
[1731995553925,0.0004,91629.0,91628.0,0.40923909]
[1731995554343,0.0004,91629.0,91628.0,0.47958409]
[1731995555036,0.0004,91629.0,91628.0,0.44690377]
[1731995555253,0.0004,91629.0,91628.0,0.34919855]
[1731995556176,0.0012543,91629.0,91628.0,0.39352768]
[1731995564086,0.0012543,91629.0,91628.0,0.39352768]
[1731995566253,0.0012543,91629.0,91628.0,0.47463323]
[1731995577873,0.0012543,91629.0,91628.0,0.49763323]
[1731995578081,0.0012543,91629.0,91628.0,0.57873878]
[1731995578533,0.0012543,91629.0,91628.0,0.49763323]
[1731995578756,0.0012543,91629.0,91628.0,0.69096384]
[1731995578969,0.0012543,91629.0,91628.0,0.70563878]
[1731995579425,0.0012543,91629.0,91628.0,0.7374722]
[1731995579650,0.0012543,91629.0,91628.0,0.8838707]
[1731995580099,0.0012543,91629.0,91628.0,0.7374722]
[1731995580337,0.0012543,91629.0,91628.0,0.8618707]
[1731995580566,0.0012543,91629.0,91628.0,0.93453053]
[1731995580796,0.0008542,91641.0,91640.0,0.232122]
[1731995581018,7e-05,91645.0,91644.0,0.3943281]
[1731995581251,7e-05,91645.0,91644.0,0.64980128]
[1731995581432,7e-05,91645.0,91644.0,0.73043345]
[1731995581712,7e-05,91645.0,91644.0,0.53521927]
[1731995583517,7e-05,91645.0,91644.0,0.45411372]
[1731995583743,7e-05,91645.0,91644.0,0.47011372]
[1731995583964,7e-05,91645.0,91644.0,0.47111372]
[1731995584234,7e-05,91645.0,91644.0,0.61750201]
[1731995584449,7e-05,91645.0,91644.0,0.47111372]
[1731995584673,7e-05,91645.0,91644.0,0.49300906]
[1731995584861,7e-05,91645.0,91644.0,0.53821826]
[1731995585344,7e-05,91645.0,91644.0,0.73341575]
[1731995585561,7e-05,91645.0,91644.0,0.53821826]
[1731995585806,7e-05,91645.0,91644.0,0.60354693]
[1731995586033,0.01007,91645.0,91644.0,0.29322154]
[1731995586288,0.01007,91645.0,91644.0,0.40228409]
[1731995586289,7e-05,91645.0,91644.0,0.40228409]
[1731995587028,7e-05,91645.0,91644.0,0.16753432]
[1731995587476,7e-05,91645.0,91644.0,0.29965132]
[1731995588169,1e-08,91645.0,91644.0,0.46135687]
[1731995588408,1e-08,91645.0,91644.0,0.37825132]
[1731995588892,1e-08,91645.0,91644.0,0.29965132]
[1731995589145,1e-08,91645.0,91644.0,0.49729852]
[1731995589412,1e-08,91645.0,91644.0,0.39965132]
[1731995589897,1e-08,91645.0,91644.0,0.48075687]
[1731995590121,1e-08,91645.0,91644.0,0.62722779]
[1731995590356,0.00100001,91645.0,91644.0,0.57112224]
[1731995590583,1e-08,91645.0,91644.0,0.54812224]
[1731995590814,1e-08,91645.0,91644.0,0.64722779]
[1731995590815,0.00200001,91645.0,91644.0,0.64722779]
[1731995591041,0.00200001,91645.0,91644.0,0.50675687]
[1731995591259,0.00200001,91645.0,91644.0,0.65326194]
[1731995591487,0.00200001,91645.0,91644.0,0.41965132]
[1731995591724,0.00200001,91645.0,91644.0,0.42565132]
[1731995592161,0.0028541,91645.0,91644.0,0.42565132]
[1731995592379,0.0028541,91645.0,91644.0,0.50675687]
[1731995592585,0.0028541,91645.0,91644.0,0.50875687]
[1731995592803,0.0028541,91645.0,91644.0,0.50675687]
[1731995593512,0.0028541,91645.0,91644.0,0.70195436]
[1731995593741,0.0028541,91645.0,91644.0,0.70220548]
[1731995593972,0.01,91661.0,91644.0,0.70220548]
[1731995593973,0.0491,91673.0,91645.0,0.1276]
[1731995594199,0.16445655,91666.0,91656.0,0.3943141]
[1731995594495,0.16445655,91666.0,91656.0,0.732142]
[1731995594720,0.0591,91673.0,91656.0,0.29126255]
[1731995594936,0.00011022,91679.0,91656.0,0.29126255]
[1731995594937,0.16456677,91679.0,91668.0,0.109089]
[1731995595180,0.16445655,91679.0,91668.0,0.38036265]
[1731995595674,0.1319,91682.0,91668.0,0.38036265]
[1731995595899,0.1319,91682.0,91668.0,0.47806764]
[1731995596121,0.1319,91682.0,91668.0,0.38036265]
[1731995596344,0.1319,91682.0,91668.0,0.47806764]
[1731995596571,0.1319,91682.0,91668.0,0.38036265]
[1731995597248,0.1319,91682.0,91668.0,0.50106764]
[1731995597482,0.1319,91682.0,91668.0,0.40336265]
[1731995597733,0.1319,91682.0,91668.0,0.42936265]
[1731995598191,0.16531125,91681.0,91668.0,0.41436265]
[1731995598405,0.16531125,91681.0,91668.0,0.53504377]
[1731995598406,0.0008547,91681.0,91668.0,0.53504377]
[1731995598634,0.0008547,91681.0,91668.0,0.3562571]
[1731995598860,0.0008547,91681.0,91668.0,0.4594234]
[1731995599299,0.0008547,91681.0,91668.0,0.50392318]
[1731995600845,0.16531125,91681.0,91668.0,0.50392318]
[1731995601722,0.16531125,91681.0,91668.0,0.42281763]
[1731995602006,0.16531125,91681.0,91668.0,0.50392318]
[1731995602629,0.16531125,91681.0,91668.0,0.42281763]
[1731995602848,0.16531125,91681.0,91668.0,0.50392318]
[1731995603286,0.16531125,91681.0,91668.0,0.48092318]
[1731995603947,0.0012539,91669.0,91668.0,0.48092318]
[1731995605060,0.0012539,91669.0,91668.0,0.58092318]
[1731995605296,0.0499539,91669.0,91668.0,0.49981763]
[1731995605539,0.0499539,91669.0,91668.0,0.18758878]
[1731995605540,0.1429539,91669.0,91668.0,0.18758878]
[1731995605759,0.1429539,91669.0,91668.0,0.26869433]
[1731995606412,0.1429539,91669.0,91668.0,0.24269433]
[1731995606628,0.1429539,91669.0,91668.0,0.26669433]
[1731995606851,0.1429539,91669.0,91668.0,0.23469433]
[1731995607105,0.1429539,91669.0,91668.0,0.24269433]
[1731995607760,0.1429539,91669.0,91668.0,0.23469433]
[1731995609541,0.1429539,91669.0,91668.0,0.15358878]
[1731995609800,0.1429539,91669.0,91668.0,0.15458878]
[1731995610018,0.1429539,91669.0,91668.0,0.15358878]
[1731995613144,0.1429539,91669.0,91668.0,0.15458878]
[1731995613369,0.1429539,91669.0,91668.0,0.15358878]
[1731995613599,0.1429539,91669.0,91668.0,0.15458878]
[1731995613815,0.1429539,91669.0,91668.0,0.15558878]
[1731995614018,0.1429539,91669.0,91668.0,0.15458878]
[1731995614430,0.1429539,91669.0,91668.0,0.15558878]
[1731995615111,0.1429539,91669.0,91668.0,0.15458878]
[1731995615536,0.1429539,91669.0,91668.0,0.15358878]
[1731995615751,0.1429539,91669.0,91668.0,0.15458878]
[1731995615979,0.1429539,91669.0,91668.0,0.15358878]
[1731995622642,0.1529539,91669.0,91668.0,0.15358878]
[1731995623769,0.1388,91659.0,91658.0,0.327303]
[1731995624237,0.1388,91659.0,91658.0,0.37233146]
[1731995624906,0.1388,91659.0,91658.0,0.109101]
[1731995625343,0.0599,91658.0,91657.0,0.0017098]
[1731995625570,0.0599,91658.0,91657.0,0.1108118]
[1731995626867,0.0599,91658.0,91657.0,0.1118118]
[1731995627356,0.0699,91658.0,91657.0,0.0027098]
[1731995627569,0.07103505,91658.0,91657.0,0.0027098]
[1731995627798,0.0699,91658.0,91657.0,0.0027098]
[1731995628029,0.0699,91658.0,91657.0,0.1128118]
[1731995628885,0.0599,91658.0,91657.0,0.1128118]
[1731995629766,0.0699,91658.0,91657.0,0.1128118]
[1731995630212,0.0599,91658.0,91657.0,0.1128118]
[1731995631981,0.0699,91658.0,91657.0,0.1128118]
[1731995632430,0.0699,91658.0,91657.0,0.1118118]
[1731995632646,0.0699,91658.0,91657.0,0.0027098]
[1731995632863,0.0699,91658.0,91657.0,0.0037098]
[1731995633070,0.0699,91658.0,91657.0,0.1128118]
[1731995633639,0.0699,91658.0,91657.0,0.1118118]
[1731995634454,0.0699,91658.0,91657.0,0.1103118]
[1731995635092,0.0699,91658.0,91657.0,0.1113118]
[1731995638273,0.0707549,91658.0,91657.0,0.0022098]
[1731995638706,0.0707549,91658.0,91657.0,0.1113118]
[1731995639503,0.0607549,91658.0,91657.0,0.1113118]
[1731995640238,0.0607549,91658.0,91657.0,0.1103118]
[1731995640625,0.0607549,91658.0,91657.0,0.1093118]
[1731995647309,0.06188995,91658.0,91657.0,0.1093118]
[1731995650847,0.0607549,91658.0,91657.0,0.1093118]
[1731995653489,0.06188995,91658.0,91657.0,0.1093118]
[1731995653706,0.01198995,91658.0,91657.0,0.1093118]
[1731995653917,0.0108549,91658.0,91657.0,0.2994799]
[1731995654148,0.0108549,91658.0,91657.0,0.54406618]
[1731995654400,0.0008549,91658.0,91657.0,0.64406618]
[1731995654660,0.0008549,91658.0,91657.0,0.4752799]
[1731995655080,0.0008549,91658.0,91657.0,0.5248799]
[1731995655650,0.0008549,91658.0,91657.0,0.5268799]
[1731995655879,0.0008549,91658.0,91657.0,0.5378799]
[1731995656259,0.0008549,91658.0,91657.0,0.5248799]
[1731995656473,0.0008549,91658.0,91657.0,0.5598799]
[1731995656681,0.0008549,91658.0,91657.0,0.5338799]
[1731995657134,0.0008549,91658.0,91657.0,0.5508799]
[1731995657337,0.0008549,91658.0,91657.0,0.5338799]
[1731995657587,0.16445655,91675.0,91657.0,0.5338799]
[1731995657588,0.09797503,91698.0,91688.0,0.01]
[1731995657797,0.0001102,91692.0,91691.0,0.01]